[Event "Krakow Championship-B 2022"]
[Site "Krakow"]
[Date "2022.07.02"]
[Round "9.7"]
[White "Cichon, Jakub"]
[Black "Khandhar, Kaushal"]
[Result "1/2-1/2"]
[ECO "D00"]
[WhiteElo "1884"]
[BlackElo "1936"]
[Annotator "NA RC"]
[PlyCount "116"]
[EventDate "2022.06.25"]
[EventType "swiss"]
[EventCountry "POL"]
[SourceTitle "playchess.com"]
[Source "ChessBase"]
[SourceQuality "1"]
[TimeControl "40/5400+30:1800+30"]

1. d4 {[%emt 0:00:04]} d5 {[%emt 0:09:05]} 2. Bf4 {[%emt 0:00:07]} Nf6 {[%emt 0:00:25]} 3. e3 {[%emt 0:00:06]} c5 {[%emt 0:00:50]} 4. c3 {[%emt 0:00:04]} Nc6 {[%emt 0:00:05]} 5. Nd2 {[%emt 0:00:28]} Bf5 {[%emt 0:09:46]} 6. Ngf3 {[%emt 0:02:29]} e6 {[%emt 0:08:15]} 7. Bb5 {[%emt 0:05:07]} Qb6 {[%emt 0:08:21]} 8. Qa4 {[%emt 0:03:09]} a6 {[%emt 0:00:59] 8...Nd7 is more fashionable.} 9. Bxc6+ {[%emt 0:00:53]} Qxc6 {[%emt 0:02:14]} 10. Qxc6+ {[%emt 0:00:48]} bxc6 {[%emt 0:00:06]} 11. O-O {[%emt 0:08:20] [#]} Rc8 $146 {[%emt 0:07:14]} ({Predecessor:} 11... Nd7 12. c4 Be7 13. Rfc1 f6 14. Nb3 Rc8 15. Bg3 Bg4 16. dxc5 e5 17. cxd5 cxd5 {½-½ (79) Ding,Y (2424)-Shen,Y (2465) Riadh 2017}) 12. Rfc1 {[%emt 0:02:35]} c4 {[%emt 0:07:55]} 13. h3 {[%emt 0:05:08]} Ne4 {[%emt 0:02:52]} 14. a3 {[%emt 0:11:48]} c5 {[%emt 0:06:25]} 15. Nxe4 {[%emt 0:03:46]} Bxe4 {[%emt 0:00:15]} 16. Nd2 {[%emt 0:02:28]} Bd3 {[%emt 0:00:42]} 17. f3 {[%emt 0:09:42]} Kd7 {[%emt 0:02:38]} 18. e4 {[%emt 0:05:51]} Rc6 {[%emt 0:10:40]} 19. Be3 {[%emt 0:09:04]} Rb6 {[%emt 0:03:03]} 20. Ra2 {[%emt 0:00:31]} Kc6 {[%emt 0:00:19]} 21. exd5+ {[%emt 0:09:21]} exd5 {[%emt 0:00:10]} 22. dxc5 {[%emt 0:02:42]} Bxc5 {[%emt 0:00:15]} 23. Bxc5 {[%emt 0:00:03]} Kxc5 {[%emt 0:00:10]} 24. Rd1 {[%emt 0:03:57]} Bc2 {[%emt 0:02:40]} 25. Rc1 {[%emt 0:01:15]} Bg6 {[%emt 0:00:11]} 26. Rf1 {[%emt 0:04:06]} Rhb8 {[%emt 0:01:17]} 27. Rf2 {[%emt 0:00:15]} Bd3 {[%emt 0:03:13]} 28. f4 {[%emt 0:01:07]} f6 {[%emt 0:00:32]} 29. g4 {[%emt 0:02:50]} Kd6 {[%emt 0:07:05]} 30. Kh2 Kd7 31. Nf3 {[%emt 0:01:35]} Bb1 {[%emt 0:00:55]} 32. Ra1 {[%emt 0:00:37]} Rxb2 33. Kg3 {[%emt 0:01:22]} Rxf2 {[%emt 0:02:12]} 34. Kxf2 {[%emt 0:00:06]} Be4 {[%emt 0:00:24]} 35. Nd2 {[%emt 0:01:44]} Bd3 {[%emt 0:00:53]} 36. Ra2 {[%emt 0:01:19]} Kd6 {[%emt 0:00:35]} 37. h4 Kc5 38. Nf3 {[%emt 0:02:33]} Rb3 {[%emt 0:03:32]} 39. Nd4 {[%emt 0:01:44]} Rxc3 {[%emt 0:00:24]} 40. Ne6+ {[%emt 0:00:17]} Kb5 {[%emt 0:00:00]} 41. Nxg7 {[%emt 0:05:08]} Rc2+ {[%emt 0:05:30]} 42. Rxc2 {[%emt 0:00:43]} Bxc2 {[%emt 0:00:10]} 43. Ke3 {[%emt 0:03:25]} Ka4 {[%emt 0:01:01]} 44. Ne8 {[%emt 0:07:23]} Kxa3 {[%emt 0:06:21]} 45. Nxf6 {[%emt 0:02:00]} Kb3 46. Nxd5 Bd1 {[%emt 0:01:55]} 47. f5 {[%emt 0:11:26]} Bxg4 {[%emt 0:01:01]} 48. f6 {[%emt 0:01:01]} Be6 {[%emt 0:00:52]} 49. Nc7 {[%emt 0:00:15]} Bf7 {[%emt 0:01:53]} 50. Nxa6 {[%emt 0:00:04]} c3 {[%emt 0:01:04]} 51. Nc5+ {[%emt 0:00:04]} Kc4 {[%emt 0:02:02]} 52. Ne4 {[%emt 0:02:03]} c2 $2 {[%emt 0:04:57]} (52... h5 $19 53. Nf2 (53. Nd6+ $2 Kb3 $19) 53... Kb3) 53. Kd2 {[%emt 0:00:40]} Kd4 {[%emt 0:03:48]} 54. Ng5 {[%emt 0:00:24]} Ke5 {[%emt 0:01:36]} 55. Nxf7+ {[%emt 0:01:49]} Kxf6 {[%emt 0:00:04]} 56. Ng5 {[%emt 0:01:06]} Kf5 $11 {[%emt 0:00:26]} 57. Nxh7 {[%emt 0:01:10]} Kg4 {[%emt 0:00:02]} 58. Kxc2 {[%emt 0:00:08]} Kxh4 1/2-1/2

[Event "Krakow Championship-B 2022"]
[Site "Krakow"]
[Date "2022.07.02"]
[Round "9.8"]
[White "Zamekhovskiy, Yevgen"]
[Black "Cwiek, Ryszard"]
[Result "1-0"]
[ECO "A40"]
[WhiteElo "1926"]
[BlackElo "1880"]
[Annotator "NA RC"]
[PlyCount "121"]
[EventDate "2022.06.25"]
[EventType "swiss"]
[EventCountry "POL"]
[SourceTitle "playchess.com"]
[Source "ChessBase"]
[SourceQuality "1"]
[TimeControl "40/5400+30:1800+30"]

1. d4 {[%emt 0:00:02]} e6 {[%emt 0:00:03]} 2. c4 {[%emt 0:00:07]} b6 {[%emt 0:00:03]} 3. Nf3 {[%emt 0:00:14]} Bb7 {[%emt 0:00:33]} 4. g3 {[%emt 0:00:05]} f5 $14 {[%emt 0:00:56]} 5. Bg2 {[%emt 0:00:44]} Bb4+ {[%emt 0:03:49]} 6. Nbd2 {[%emt 0:00:25]} Nf6 {[%emt 0:03:04]} 7. O-O {[%emt 0:00:16]} Bxd2 {[%emt 0:00:44]} 8. Qxd2 {[%emt 0:00:55]} O-O {[%emt 0:07:27]} 9. Rd1 {[%emt 0:02:19]} a5 {[%emt 0:08:13]} 10. Qc2 {[%emt 0:04:17]} Be4 {[%emt 0:05:16]} 11. Qc3 {[%emt 0:00:50]} Na6 {[%emt 0:01:57]} 12. b3 {[%emt 0:03:01]} c5 {[%emt 0:09:45]} 13. Bb2 {[%emt 0:07:44]} Qe7 {[%emt 0:03:04]} 14. dxc5 {[%emt 0:06:30]} bxc5 {[%emt 0:05:13]} 15. Qe5 {[%emt 0:02:56]} Nb4 {[%emt 0:11:37]} 16. Qd6 {[%emt 0:13:53]} Qxd6 {[%emt 0:01:47]} 17. Rxd6 {[%emt 0:00:04]} Ra6 {[%emt 0:17:25]} 18. Rxa6 {[%emt 0:04:11]} Nxa6 {[%emt 0:00:02]} 19. Be5 {[%emt 0:00:00]} d5 {[%emt 0:13:42]} 20. cxd5 {[%emt 0:11:43]} exd5 {[%emt 0:00:01]} 21. Rc1 {[%emt 0:00:08]} Nd7 {[%emt 0:02:13]} 22. Bf4 {[%emt 0:01:14]} Nb4 {[%emt 0:01:36]} 23. a3 {[%emt 0:00:06]} Nc2 {[%emt 0:02:27]} 24. Ng5 {[%emt 0:00:51]} Nd4 {[%emt 0:00:41]} 25. Bf1 {[%emt 0:02:23]} h6 {[%emt 0:00:26]} 26. Nxe4 {[%emt 0:00:24]} fxe4 {[%emt 0:00:23]} 27. b4 {[%emt 0:00:55]} axb4 {[%emt 0:00:42]} 28. axb4 {[%emt 0:00:01]} cxb4 {[%emt 0:00:30]} 29. Rd1 {[%emt 0:00:52]} Ne6 {[%emt 0:00:48]} 30. Bd6 {[%emt 0:01:43]} Rc8 {[%emt 0:00:22]} 31. Bh3 {[%emt 0:02:54]} Kf7 {[%emt 0:00:36]} 32. Rxd5 {[%emt 0:00:04]} Ndc5 {[%emt 0:00:34]} 33. Bxc5 {[%emt 0:00:54]} b3 {[%emt 0:00:10]} 34. Bd4 {[%emt 0:02:02]} Nxd4 {[%emt 0:00:18]} 35. Bxc8 {[%emt 0:00:45]} b2 {[%emt 0:00:07]} 36. Rd7+ {[%emt 0:00:07]} Kf6 {[%emt 0:00:23]} 37. Rb7 {[%emt 0:00:10]} Nxe2+ {[%emt 0:00:24]} 38. Kg2 {[%emt 0:00:28]} g5 {[%emt 0:00:28]} 39. Rxb2 {[%emt 0:00:08]} Nc3 {[%emt 0:00:15]} 40. Rc2 {[%emt 0:00:15]} Nd5 {[%emt 0:00:05]} 41. Bb7 {[%emt 0:30:07]} Ne7 {[%emt 0:30:05]} 42. Bxe4 {[%emt 0:00:05]} Ke5 {[%emt 0:00:07]} 43. Bf3 {[%emt 0:00:13]} Nf5 {[%emt 0:00:06]} 44. Rc5+ {[%emt 0:00:08]} Kd4 {[%emt 0:00:19]} 45. Rxf5 {[%emt 0:00:05]} g4 {[%emt 0:00:02]} 46. Rh5 {[%emt 0:00:07]} gxf3+ {[%emt 0:00:06]} 47. Kxf3 {[%emt 0:00:02]} Kd3 {[%emt 0:00:06]} 48. Rxh6 {[%emt 0:00:05]} Kd4 {[%emt 0:00:04]} 49. Kf4 {[%emt 0:00:03]} Kd5 {[%emt 0:00:03]} 50. g4 {[%emt 0:00:04]} Kc5 {[%emt 0:00:03]} 51. g5 {[%emt 0:00:03]} Kd4 {[%emt 0:00:03]} 52. g6 {[%emt 0:00:05]} Kd3 {[%emt 0:00:03]} 53. g7 {[%emt 0:00:03]} Kc4 {[%emt 0:00:04]} 54. g8=Q+ {[%emt 0:00:06]} Kb4 {[%emt 0:00:03]} 55. Rb6+ {[%emt 0:00:03]} Kc5 {[%emt 0:00:05]} 56. Qb3 {[%emt 0:00:22]} Kd4 {[%emt 0:00:04]} 57. Rd6+ {[%emt 0:00:03]} Kc5 {[%emt 0:00:05]} 58. Rd5+ {[%emt 0:00:10]} Kc6 {[%emt 0:00:05]} 59. Qb5+ {[%emt 0:00:01]} Kc7 {[%emt 0:00:06]} 60. Rd7+ {[%emt 0:00:05]} Kc8 {[%emt 0:00:03]} 61. Qb7# {[%emt 0:00:03]} 1-0

[Event "Krakow Championship-B 2022"]
[Site "Krakow"]
[Date "2022.07.02"]
[Round "9.9"]
[White "Marciniak, Leonard"]
[Black "Cattaruzzo, Nicolo`"]
[Result "1-0"]
[ECO "A80"]
[WhiteElo "1799"]
[BlackElo "1744"]
[Annotator "NA RC"]
[PlyCount "39"]
[EventDate "2022.06.25"]
[EventType "swiss"]
[EventCountry "POL"]
[SourceTitle "playchess.com"]
[Source "ChessBase"]
[SourceQuality "1"]
[TimeControl "40/5400+30:1800+30"]

1. d4 {[%emt 0:00:03]} f5 {[%emt 0:00:23]} 2. Nc3 {[%emt 0:00:07]} Nf6 {[%emt 0:00:25]} 3. Bg5 {[%emt 0:00:19]} e6 {[%emt 0:02:10]} 4. e4 {[%emt 0:00:26]} Be7 {[%emt 0:00:42]} 5. exf5 {[%emt 0:07:15]} exf5 {[%emt 0:03:44]} 6. Qf3 {[%emt 0:00:06]} d6 {[%emt 0:08:37]} 7. Bd3 {[%emt 0:04:30]} g6 {[%emt 0:07:18]} 8. Nge2 {[%emt 0:03:22]} Be6 {[%emt 0:09:15]} 9. Nf4 {[%emt 0:06:03]} Bf7 {[%emt 0:02:13]} 10. Qxb7 {[%emt 0:04:13]} Nbd7 {[%emt 0:02:04]} 11. O-O {[%emt 0:09:46]} O-O {[%emt 0:04:17]} 12. Rfe1 {[%emt 0:05:38]} a5 {[%emt 0:06:41]} 13. Qc6 {[%emt 0:09:20]} Re8 {[%emt 0:08:46]} 14. Bc4 {[%emt 0:01:51]} Qb8 {[%emt 0:09:14]} 15. Bxf7+ {[%emt 0:02:32]} Kxf7 {[%emt 0:00:22]} 16. Qc4+ {[%emt 0:07:20]} Kg7 {[%emt 0:03:52]} 17. Ne6+ {[%emt 0:04:15]} Kh8 {[%emt 0:00:15]} 18. Nxc7 {[%emt 0:02:12]} Nb6 {[%emt 0:05:21]} 19. Qf7 {[%emt 0:00:58]} Nbd7 {[%emt 0:11:46]} 20. Nxe8 {[%emt 0:02:50]} 1-0

[Event "Krakow Championship-B 2022"]
[Site "Krakow"]
[Date "2022.07.02"]
[Round "9.10"]
[White "Al-Hajiri, Bader"]
[Black "Cichon, Bartlomiej"]
[Result "0-1"]
[ECO "E92"]
[WhiteElo "2052"]
[BlackElo "1895"]
[Annotator "NA RC"]
[PlyCount "42"]
[EventDate "2022.06.25"]
[EventType "swiss"]
[EventCountry "POL"]
[SourceTitle "playchess.com"]
[Source "ChessBase"]
[SourceQuality "1"]
[TimeControl "40/5400+30:1800+30"]

1. d4 {[%emt 0:15:43]} Nf6 {[%emt 0:00:11]} 2. c4 {[%emt 0:00:05]} g6 {[%emt 0:00:06]} 3. Nc3 {[%emt 0:00:14]} Bg7 {[%emt 0:00:06]} 4. e4 {[%emt 0:00:17]} d6 {[%emt 0:00:08]} 5. Nf3 {[%emt 0:01:36]} O-O {[%emt 0:00:07]} 6. Be2 {[%emt 0:00:31]} e5 {[%emt 0:00:07]} 7. dxe5 {[%emt 0:03:27]} dxe5 {[%emt 0:00:31]} 8. Qxd8 {[%emt 0:00:07]} Rxd8 {[%emt 0:00:06]} 9. Bg5 {[%emt 0:00:05]} Re8 {[%emt 0:01:49]} 10. O-O-O {[%emt 0:01:04]} h6 {[%emt 0:06:34]} 11. Bh4 {[%emt 0:05:29]} c6 {[%emt 0:17:38]} 12. Nxe5 {[%emt 0:04:22]} Nxe4 {[%emt 0:07:46]} 13. Nxe4 {[%emt 0:00:14]} Bxe5 {[%emt 0:00:15]} 14. Nd6 {[%emt 0:07:14]} Bf4+ {[%emt 0:09:25]} 15. Kb1 {[%emt 0:00:38]} Rxe2 {[%emt 0:01:28]} 16. Nxc8 {[%emt 0:00:09]} Na6 {[%emt 0:07:34]} 17. Rd8+ {[%emt 0:27:41]} Kg7 {[%emt 0:00:07]} 18. Bg3 {[%emt 0:00:08]} Bg5 {[%emt 0:05:29]} 19. Rhd1 {[%emt 0:00:10]} Bf6 {[%emt 0:05:42]} 20. R1d6 {[%emt 0:09:09]} Nb4 {[%emt 0:08:09]} 21. a3 {[%emt 0:02:22]} Bxd8 {[%emt 0:03:46]} 0-1

[Event "Krakow Championship-B 2022"]
[Site "Krakow"]
[Date "2022.07.02"]
[Round "9.11"]
[White "Budkiewicz, Magdalena"]
[Black "Tokarz, Izabela"]
[Result "0-1"]
[ECO "B74"]
[WhiteElo "1916"]
[BlackElo "1690"]
[Annotator "NA RC"]
[PlyCount "90"]
[EventDate "2022.06.25"]
[EventType "swiss"]
[EventCountry "POL"]
[SourceTitle "playchess.com"]
[Source "ChessBase"]
[SourceQuality "1"]
[TimeControl "40/5400+30:1800+30"]

1. e4 {[%emt 0:00:05]} c5 {[%emt 0:00:04]} 2. Nf3 {[%emt 0:00:17]} d6 {[%emt 0:00:02]} 3. d4 {[%emt 0:00:23]} cxd4 {[%emt 0:00:04]} 4. Nxd4 {[%emt 0:00:10]} Nf6 {[%emt 0:00:04]} 5. Nc3 {[%emt 0:00:07]} g6 {[%emt 0:00:03]} 6. Be2 {[%emt 0:00:48]} Bg7 {[%emt 0:00:05]} 7. O-O {[%emt 0:00:21]} O-O {[%emt 0:00:04]} 8. Be3 {[%emt 0:01:16]} Nc6 9. Nb3 {[%emt 0:07:33]} Bd7 {[%emt 0:09:04]} 10. f4 {[%emt 0:00:34]} a6 {[%emt 0:20:47]} 11. Kh1 {[%emt 0:03:02]} b5 {[%emt 0:03:21]} 12. a3 {[%emt 0:00:51]} Be6 {[%emt 0:06:49]} 13. Nd4 {[%emt 0:01:51]} Nxd4 {[%emt 0:01:27]} 14. Bxd4 {[%emt 0:00:18]} Rc8 {[%emt 0:00:21]} 15. f5 {[%emt 0:13:07]} Bc4 {[%emt 0:00:47]} 16. Bd3 {[%emt 0:08:15]} Nd7 {[%emt 0:04:52]} 17. Bxg7 {[%emt 0:01:15]} Kxg7 {[%emt 0:00:06]} 18. Rf3 {[%emt 0:02:44]} Ne5 {[%emt 0:04:08]} 19. Rh3 {[%emt 0:00:38]} h5 {[%emt 0:20:34]} 20. Qd2 {[%emt 0:03:13]} Qb6 {[%emt 0:04:53]} 21. Rf1 {[%emt 0:03:56]} Ng4 {[%emt 0:04:01]} 22. Nd5 {[%emt 0:12:40]} Bxd5 {[%emt 0:01:09]} 23. exd5 {[%emt 0:00:05]} Qd4 {[%emt 0:02:07]} 24. Qe2 {[%emt 0:19:57]} Rce8 {[%emt 0:01:37]} 25. Be4 {[%emt 0:01:20]} Qxb2 {[%emt 0:01:34]} 26. Bf3 {[%emt 0:04:15]} Qd4 {[%emt 0:00:40]} 27. Rh4 {[%emt 0:00:57]} Qf6 {[%emt 0:01:12]} 28. Qe1 {[%emt 0:01:39]} Ne3 {[%emt 0:01:28]} 29. Qxe3 {[%emt 0:04:57]} Qxh4 {[%emt 0:00:07]} 30. Be4 {[%emt 0:00:22]} Qf6 {[%emt 0:01:16]} 31. Bd3 {[%emt 0:02:56]} g5 {[%emt 0:01:29]} 32. Qg3 {[%emt 0:02:06]} Kh6 {[%emt 0:00:40]} 33. Be2 {[%emt 0:01:15]} Qe5 {[%emt 0:00:45]} 34. Qf3 {[%emt 0:00:16]} g4 {[%emt 0:00:09]} 35. Qd3 {[%emt 0:00:54]} f6 {[%emt 0:01:19]} 36. Qd2+ {[%emt 0:02:28]} Kg7 {[%emt 0:00:05]} 37. Rf4 {[%emt 0:01:10]} Rc8 {[%emt 0:00:59]} 38. Bd3 {[%emt 0:00:44]} Kf7 {[%emt 0:04:19]} 39. Re4 {[%emt 0:00:40]} Qc3 {[%emt 0:01:17]} 40. Qd1 {[%emt 0:00:33]} Rc5 {[%emt 0:01:13]} 41. h3 {[%emt 0:02:40]} Rxd5 {[%emt 0:01:43]} 42. hxg4 {[%emt 0:02:49]} hxg4 {[%emt 0:00:21]} 43. Qxg4 {[%emt 0:00:37]} Rh8+ {[%emt 0:00:06]} 44. Kg1 {[%emt 0:00:25]} Qc5+ {[%emt 0:00:19]} 45. Kf1 {[%emt 0:00:15]} Rxf5+ {[%emt 0:00:18]} 0-1

[Event "Krakow Championship-B 2022"]
[Site "Krakow"]
[Date "2022.07.02"]
[Round "9.12"]
[White "Klementys, Jerzy"]
[Black "Karut, Kacper"]
[Result "0-1"]
[ECO "D59"]
[WhiteElo "1614"]
[BlackElo "1775"]
[Annotator "NA RC"]
[PlyCount "100"]
[EventDate "2022.06.25"]
[EventType "swiss"]
[EventCountry "POL"]
[SourceTitle "playchess.com"]
[Source "ChessBase"]
[SourceQuality "1"]
[TimeControl "40/5400+30:1800+30"]

1. d4 {[%emt 0:00:21]} d5 {[%emt 0:00:09]} 2. c4 {[%emt 0:00:09]} e6 {[%emt 0:00:05]} 3. Nc3 {[%emt 0:00:07]} Nf6 {[%emt 0:00:05]} 4. Bg5 {[%emt 0:00:07]} Be7 {[%emt 0:00:13]} 5. e3 {[%emt 0:00:09]} h6 {[%emt 0:00:57]} 6. Bh4 {[%emt 0:00:02]} O-O {[%emt 0:00:18]} 7. Nf3 {[%emt 0:00:02]} b6 {[%emt 0:01:34]} 8. cxd5 {[%emt 0:00:13]} Nxd5 {[%emt 0:00:34]} 9. Bxe7 {[%emt 0:00:24]} Qxe7 {[%emt 0:00:27]} 10. Nxd5 {[%emt 0:00:19]} exd5 {[%emt 0:00:06]} 11. Bd3 {[%emt 0:00:21]} c5 {[%emt 0:07:30]} 12. Rc1 {[%emt 0:01:53]} c4 {[%emt 0:02:56]} 13. Bb1 {[%emt 0:00:23]} Nc6 {[%emt 0:05:40]} 14. O-O {[%emt 0:00:39]} f5 {[%emt 0:05:38]} 15. b3 {[%emt 0:05:14]} b5 {[%emt 0:02:52]} 16. a4 {[%emt 0:01:28]} a6 {[%emt 0:03:25]} 17. axb5 {[%emt 0:00:26]} axb5 {[%emt 0:00:11]} 18. bxc4 {[%emt 0:00:05]} bxc4 {[%emt 0:07:39]} 19. Bc2 {[%emt 0:00:49]} Bd7 {[%emt 0:07:19]} 20. Ra1 {[%emt 0:00:37]} Ra3 {[%emt 0:12:28]} 21. Rxa3 {[%emt 0:04:16]} Qxa3 {[%emt 0:00:06]} 22. Qc1 {[%emt 0:00:07]} Ra8 {[%emt 0:02:50]} 23. h3 {[%emt 0:04:39]} Qxc1 {[%emt 0:08:26]} 24. Rxc1 {[%emt 0:00:02]} Ra3 {[%emt 0:00:42]} 25. Rb1 {[%emt 0:00:32]} Ra2 {[%emt 0:01:02]} 26. Ne1 {[%emt 0:04:11]} Kf7 {[%emt 0:02:31]} 27. Kf1 {[%emt 0:00:18]} Ke7 {[%emt 0:01:38]} 28. Rb7 {[%emt 0:04:54]} Kd6 {[%emt 0:03:52]} 29. Bb1 {[%emt 0:01:09]} Ra7 {[%emt 0:09:00]} 30. Rxa7 {[%emt 0:01:07]} Nxa7 {[%emt 0:00:03]} 31. Nf3 {[%emt 0:01:18]} Nc6 {[%emt 0:03:04]} 32. Ke2 {[%emt 0:01:25]} g5 {[%emt 0:04:19]} 33. Kd2 {[%emt 0:00:20]} Kc7 {[%emt 0:02:38]} 34. Kc3 {[%emt 0:00:07]} Kb6 {[%emt 0:00:34]} 35. h4 {[%emt 0:02:43]} g4 {[%emt 0:00:29]} 36. Ng1 {[%emt 0:00:02]} Ka5 {[%emt 0:01:44]} 37. Ne2 {[%emt 0:00:13]} Na7 {[%emt 0:00:26]} 38. g3 {[%emt 0:01:33]} Nb5+ {[%emt 0:00:28]} 39. Kb2 {[%emt 0:00:23]} Kb4 {[%emt 0:00:25]} 40. Nf4 {[%emt 0:01:24]} Nc7 {[%emt 0:05:17]} 41. Bc2 {[%emt 0:30:48]} Bc8 {[%emt 0:10:49]} 42. Ng6 {[%emt 0:00:00]} Be6 {[%emt 0:06:13]} 43. Ne7 {[%emt 0:00:00]} c3+ {[%emt 0:01:25]} 44. Kc1 {[%emt 0:00:00]} Ka3 {[%emt 0:03:46]} 45. Bxf5 {[%emt 0:00:00]} Bxf5 {[%emt 0:00:13]} 46. Nxf5 {[%emt 0:00:00]} Kb3 {[%emt 0:00:48]} 47. Nxh6 {[%emt 0:00:00]} Na6 {[%emt 0:00:56]} 48. Nf7 {[%emt 0:00:00]} Nb4 {[%emt 0:00:22]} 49. Ne5 {[%emt 0:00:00]} Na2+ {[%emt 0:00:27]} 50. Kd1 {[%emt 0:00:00]} c2+ {[%emt 0:00:03]} 0-1